bitfinex/quotes_BTCUSD_20260307
["timestamp","ask_amount","ask_price","bid_price","bid_amount"]
[1772899086268,0.07353815,67910.0,67903.0,0.08263732]
[1772899086767,0.07353815,67910.0,67903.0,0.08263723]
[1772899087137,0.07353815,67910.0,67903.0,0.00900293]
[1772899087850,0.06617624,67910.0,67903.0,0.00900293]
[1772899088177,0.05145238,67910.0,67903.0,0.00900293]
[1772899088895,0.00022001,67910.0,67903.0,0.08263722]
[1772899089271,0.07384695,67910.0,67903.0,0.08263722]
[1772899089773,0.07384695,67910.0,67903.0,0.00900293]
[1772899091296,0.07384695,67910.0,67903.0,0.08263729]
[1772899092084,0.07384695,67910.0,67903.0,0.00900293]
[1772899093807,0.07384695,67910.0,67903.0,0.08263722]
[1772899093990,0.07384695,67910.0,67903.0,0.00900293]
[1772899094820,0.07384695,67910.0,67903.0,0.00920293]
[1772899098308,0.07384741,67910.0,67903.0,0.08283694]
[1772899098829,0.07384695,67910.0,67903.0,0.00920293]
[1772899099451,0.00022001,67910.0,67903.0,0.08283693]
[1772899099970,0.07384689,67910.0,67903.0,0.00920293]
[1772899100173,0.00022001,67910.0,67903.0,0.08283688]
[1772899101276,0.06648515,67910.0,67903.0,0.08283688]
[1772899101439,0.05517125,67910.0,67903.0,0.08283688]
[1772899102060,0.05517125,67910.0,67904.0,0.00900293]
[1772899103480,0.05539126,67910.0,67904.0,0.00900293]
[1772899104639,0.00022001,67910.0,67904.0,0.00900293]
[1772899104844,0.07384705,67910.0,67904.0,0.00900293]
[1772899105254,0.07384705,67910.0,67900.0,0.07383553]
[1772899105460,0.07384705,67910.0,67900.0,0.08131477]
[1772899128101,0.00781823,67909.0,67900.0,0.00168]
[1772899128514,0.07384705,67910.0,67900.0,0.00168]
[1772899129018,0.07384705,67910.0,67901.0,0.07363661]
[1772899130546,0.00022001,67910.0,67901.0,0.07363661]
[1772899130753,0.07384691,67910.0,67902.0,0.00800156]
[1772899132429,0.07384691,67910.0,67903.0,0.07363444]
[1772899140464,0.00022001,67910.0,67903.0,0.07363444]
[1772899142993,0.07384737,67910.0,67903.0,0.07363444]
[1772899143175,0.07384737,67910.0,67902.0,0.08163663]
[1772899143809,0.07384737,67910.0,67902.0,0.00800156]
[1772899144874,0.07384737,67910.0,67901.0,0.0002]
[1772899145083,0.07384737,67910.0,67896.0,0.0002]
[1772899145084,0.00859387,67907.0,67896.0,0.0002]
[1772899145286,0.00859387,67905.0,67897.0,0.00148]
[1772899145484,0.04987472,67906.0,67891.0,0.00148]
[1772899145485,0.00859387,67903.0,67891.0,0.00148]
[1772899145723,0.0500291,67900.0,67889.0,0.00148]
[1772899145922,0.00859387,67898.0,67889.0,0.00148]
[1772899146136,0.00859387,67898.0,67887.0,0.00168]
[1772899147424,0.00859387,67896.0,67887.0,0.00168]
[1772899147815,0.00859387,67896.0,67887.0,0.0002]
[1772899148124,0.00859387,67896.0,67887.0,0.00168]
[1772899148306,0.00859387,67896.0,67887.0,0.0002]
[1772899148501,0.00859387,67896.0,67887.0,0.00168]
[1772899149468,0.07364312,67895.0,67887.0,0.00168]
[1772899149616,0.07364312,67895.0,67887.0,0.07533176]
[1772899150055,0.07348871,67895.0,67887.0,0.07533176]
[1772899150958,0.07363407,67904.0,67888.0,0.05329084]
[1772899151137,0.07363407,67904.0,67892.0,0.05329084]
[1772899151345,0.07363407,67904.0,67894.0,0.05329084]
[1772899151515,0.07363336,67906.0,67896.0,0.07364204]
[1772899151914,0.07363336,67906.0,67895.0,0.06160857]
[1772899152173,0.07523271,67909.0,67895.0,0.07364242]
[1772899152365,0.0736297,67908.0,67898.0,0.00831773]
[1772899152671,0.0736297,67908.0,67899.0,0.00148]
[1772899153437,0.0736297,67908.0,67899.0,0.00045767]
[1772899160031,0.00910408,67907.0,67899.0,0.00045767]
[1772899160432,0.00910408,67907.0,67899.0,0.00065767]
[1772899160869,0.00910408,67907.0,67899.0,0.0002]
[1772899161073,0.08273527,67906.0,67900.0,0.00148]
[1772899161280,0.00910408,67905.0,67899.0,0.0002]
[1772899161477,0.00910408,67905.0,67900.0,0.00148]
[1772899162849,0.00910408,67905.0,67899.0,0.0002]
[1772899163185,0.07363336,67904.0,67899.0,0.0002]
[1772899165710,0.00910408,67903.0,67895.0,0.0002]
[1772899165912,0.00910408,67903.0,67894.0,0.00148]
[1772899166080,0.00910408,67902.0,67894.0,0.00148]
[1772899166891,0.00910408,67902.0,67892.0,0.0002]
[1772899167375,0.01010408,67902.0,67892.0,0.0002]
[1772899167628,0.07363661,67901.0,67892.0,0.0002]
[1772899167821,0.00910408,67900.0,67892.0,0.0002]
[1772899168062,0.0500291,67900.0,67882.0,0.00035]
[1772899168230,0.07363661,67901.0,67882.0,0.00035]
[1772899168231,0.00910408,67897.0,67882.0,0.00035]
[1772899168532,0.0500291,67898.0,67882.0,0.00035]
[1772899168533,0.00910408,67895.0,67883.0,0.00148]
[1772899169585,0.07364421,67894.0,67883.0,0.00148]
[1772899169826,0.00910408,67893.0,67883.0,0.00148]
[1772899170005,0.00906052,67893.0,67883.0,0.00148]
[1772899172540,0.00910408,67891.0,67882.0,0.00183]
[1772899172737,0.00906052,67891.0,67882.0,0.00183]
[1772899172938,0.00901696,67891.0,67882.0,0.00183]
[1772899174465,0.00901696,67891.0,67883.0,0.0002]
[1772899174646,0.07364854,67890.0,67883.0,0.0002]
[1772899175898,0.00910408,67889.0,67883.0,0.0002]
[1772899176789,0.08275479,67888.0,67883.0,0.0002]
[1772899177893,0.07365071,67888.0,67882.0,0.00035]
[1772899178089,0.00929674,67887.0,67881.0,0.00168]
[1772899178413,0.00925318,67887.0,67881.0,0.00168]
[1772899179878,0.07365288,67886.0,67881.0,0.00168]
[1772899180106,0.07360932,67886.0,67881.0,0.00168]
[1772899180504,0.07356576,67886.0,67881.0,0.00168]
[1772899181821,0.07356576,67886.0,67881.0,0.0002]
[1772899182025,0.0828625,67886.0,67882.0,0.00148]
[1772899182220,0.07356576,67886.0,67882.0,0.00148]
[1772899184029,0.07365071,67888.0,67882.0,0.00148]
[1772899188545,0.07365071,67888.0,67882.0,0.00168]
[1772899189434,0.07365071,67888.0,67882.0,0.0002]
[1772899189638,0.07365071,67888.0,67882.0,0.00168]
[1772899190035,0.07365071,67888.0,67874.0,0.0002]
[1772899190234,0.07365071,67888.0,67866.0,0.00148]
[1772899190235,0.00929674,67882.0,67866.0,0.00148]
[1772899190753,0.00929674,67882.0,67867.0,0.05302508]
[1772899193268,0.07365831,67881.0,67867.0,0.05302508]
[1772899193470,0.00929674,67880.0,67868.0,0.00148]
[1772899196201,0.08295722,67879.0,67868.0,0.00168]
[1772899198785,0.00929674,67879.0,67868.0,0.00168]
[1772899201506,0.00929674,67879.0,67868.0,0.0002]
[1772899202441,0.00929674,67879.0,67869.0,0.00148]
[1772899202642,0.07366156,67878.0,67869.0,0.00148]
[1772899202825,0.08295899,67878.0,67869.0,0.00148]
[1772899203208,0.07366048,67880.0,67869.0,0.00148]
[1772899203444,0.07366048,67880.0,67864.0,0.00148]
[1772899203445,0.04965464,67878.0,67864.0,0.00148]
[1772899203644,0.04965464,67874.0,67850.0,0.07569089]
[1772899203846,0.00929743,67867.0,67850.0,0.002]
[1772899204022,0.0001226,67878.0,67855.0,0.04871589]
[1772899204224,0.0001226,67878.0,67859.0,0.04871589]
[1772899204545,0.00929743,67869.0,67854.0,0.0002]
[1772899204698,0.00929743,67869.0,67855.0,0.00148]
[1772899205147,0.00929743,67869.0,67851.0,0.0001226]
[1772899205148,0.00929743,67869.0,67851.0,0.0001896]
[1772899205149,0.04965464,67869.0,67851.0,0.0001896]
[1772899205335,0.04965464,67865.0,67851.0,0.0001896]
[1772899205549,0.05113464,67864.0,67851.0,0.0001896]
[1772899205727,0.00929743,67863.0,67851.0,0.0001896]
[1772899206130,0.00929743,67860.0,67840.0,0.04891029]
[1772899206337,0.00929743,67860.0,67841.0,0.00148]
[1772899206552,0.00929743,67859.0,67841.0,0.00148]
[1772899206754,0.00929743,67859.0,67840.0,0.04891029]
[1772899206755,0.04965464,67856.0,67840.0,0.0001944]
[1772899206951,0.00929743,67855.0,67842.0,0.00148]
[1772899207674,0.00929743,67853.0,67842.0,0.00148]
[1772899209073,0.00933521,67852.0,67842.0,0.00148]
[1772899210106,0.00933521,67850.0,67842.0,0.00148]
[1772899210254,0.00933521,67850.0,67840.0,0.00148]
[1772899210822,0.04965464,67848.0,67835.0,0.00575]
[1772899210970,0.00933521,67847.0,67835.0,0.00723]
[1772899211171,0.00933521,67846.0,67828.0,0.04871589]
[1772899211368,0.00933521,67846.0,67833.0,0.00148]
[1772899211719,0.00933521,67844.0,67830.0,0.00148]
[1772899211867,0.00933521,67842.0,67830.0,0.00148]
[1772899212066,0.07370174,67841.0,67830.0,0.00156849]
[1772899212267,0.00933521,67840.0,67830.0,0.00156849]
[1772899212508,0.00933521,67840.0,67820.0,0.07372359]
[1772899212711,0.00933521,67840.0,67823.0,0.04871589]
[1772899213085,0.00933521,67840.0,67824.0,0.00148]
[1772899213675,0.00933521,67840.0,67828.0,0.0002]
[1772899214594,0.07368866,67854.0,67831.0,0.04871589]
[1772899214767,0.07368866,67854.0,67833.0,0.04871589]
[1772899216591,0.07388049,67856.0,67834.0,0.07370934]
[1772899216789,0.08528294,67856.0,67835.0,0.04871589]
[1772899218445,0.01140245,67855.0,67835.0,0.04871589]
[1772899218824,0.07368762,67854.0,67837.0,0.04871589]
[1772899219027,0.07368762,67854.0,67836.0,0.07370717]
[1772899219028,0.07368762,67854.0,67839.0,0.04871589]
[1772899220862,0.01140245,67853.0,67840.0,0.00148]
[1772899221384,0.01140245,67851.0,67841.0,0.00148]
[1772899221716,0.01140245,67851.0,67835.0,0.07370826]
[1772899221962,0.01140245,67851.0,67840.0,0.00148]
[1772899222554,0.01140245,67851.0,67840.0,0.00160023]
[1772899223153,0.07369196,67850.0,67840.0,0.00160023]
[1772899223356,0.01138067,67849.0,67840.0,0.07530264]
[1772899223559,0.07368762,67854.0,67841.0,0.05019589]
[1772899224572,0.01138067,67853.0,67841.0,0.05019589]
[1772899225276,0.01138067,67851.0,67842.0,0.07370065]
[1772899225474,0.01138067,67851.0,67842.0,0.07518065]
[1772899226236,0.01133711,67851.0,67842.0,0.07518065]
[1772899226981,0.01135889,67849.0,67836.0,0.00148]
[1772899227183,0.01135889,67847.0,67837.0,0.00148]
[1772899230407,0.07369631,67846.0,67838.0,0.073705]
[1772899230563,0.07368907,67853.0,67839.0,0.04871589]
[1772899231761,0.01135889,67852.0,67837.0,0.00148]
[1772899231968,0.01135889,67852.0,67838.0,0.00148]
[1772899232167,0.07368907,67853.0,67838.0,0.00148]
[1772899232168,0.07368907,67853.0,67839.0,0.04702957]
[1772899232586,0.07368907,67853.0,67841.0,0.04702957]
[1772899234555,0.07368907,67853.0,67842.0,0.07370065]
[1772899234755,0.07368907,67853.0,67842.0,0.12073022]
[1772899234928,0.07368907,67853.0,67843.0,0.00961938]
[1772899235123,0.07368907,67853.0,67844.0,0.01109938]
[1772899235986,0.07390814,67854.0,67844.0,0.01109938]
[1772899236559,0.07390814,67854.0,67845.0,0.07369739]
[1772899236972,0.07390814,67854.0,67845.0,0.08331677]
[1772899237691,0.05082986,67851.0,67839.0,0.00148]
[1772899237899,0.00586852,67849.0,67838.0,0.00148]
[1772899238100,0.00586852,67849.0,67836.0,0.08336649]
[1772899238608,0.00586852,67849.0,67837.0,0.00148]
[1772899239302,0.07390794,67854.0,67842.0,0.00978668]
[1772899239512,0.07390794,67854.0,67844.0,0.00978668]
[1772899239714,0.07390794,67854.0,67845.0,0.00148]
[1772899240019,0.07390794,67854.0,67846.0,0.00978668]
[1772899240591,0.07368685,67854.0,67846.0,0.00978668]
[1772899241077,0.07368685,67854.0,67848.0,0.00015]
[1772899241467,0.0001944,67856.0,67848.0,0.00015]
[1772899244411,0.00041441,67856.0,67848.0,0.00015]
[1772899245424,0.00644531,67856.0,67848.0,0.00015]
[1772899246320,0.07368653,67855.0,67848.0,0.00015]
[1772899249260,0.07368653,67855.0,67843.0,0.04394518]
[1772899249437,0.07979316,67855.0,67842.0,0.00148]
[1772899250970,0.07979316,67855.0,67843.0,0.00148]
[1772899251371,0.07368653,67855.0,67843.0,0.00148]
[1772899251583,0.0061432,67854.0,67843.0,0.00148]
[1772899252448,0.0061432,67854.0,67840.0,0.00978668]
[1772899252655,0.0061432,67854.0,67841.0,0.00148]
[1772899253052,0.0061432,67854.0,67842.0,0.00148]
[1772899254148,0.0736887,67853.0,67842.0,0.00148]
[1772899254300,0.0736887,67853.0,67843.0,0.04702957]
[1772899254513,0.0736887,67853.0,67844.0,0.00978668]
[1772899254871,0.0736887,67853.0,67844.0,0.05681625]
[1772899255570,0.0736887,67853.0,67845.0,0.00978668]
[1772899256306,0.0736887,67853.0,67845.0,0.08348322]
[1772899256689,0.0736887,67853.0,67845.0,0.00978668]
[1772899258025,0.00981919,67851.0,67829.0,0.00978668]
[1772899258257,0.00981919,67851.0,67833.0,0.00168]
[1772899258258,0.04344166,67850.0,67833.0,0.00168]
[1772899258381,0.07369413,67848.0,67833.0,0.00168]
[1772899258576,0.00981919,67847.0,67833.0,0.00168]
[1772899259015,0.00981919,67845.0,67833.0,0.00168]
[1772899259413,0.00981919,67845.0,67833.0,0.0002]
[1772899259620,0.00981919,67845.0,67833.0,0.00168]
[1772899260023,0.00981919,67845.0,67833.0,0.07539017]
[1772899260941,0.07369413,67849.0,67833.0,0.07539017]
[1772899260942,0.07410203,67856.0,67838.0,0.04702957]
[1772899261151,0.07368762,67854.0,67841.0,0.0109289]
[1772899261284,0.07368762,67854.0,67843.0,0.0109289]
[1772899261489,0.07368762,67854.0,67846.0,0.04624847]
[1772899261689,0.07368762,67854.0,67847.0,0.04624847]
[1772899266004,0.07368762,67854.0,67846.0,0.08610489]
[1772899266005,0.07388682,67854.0,67850.0,0.0109289]
[1772899266384,0.07388682,67854.0,67850.0,0.05839471]
[1772899268613,0.07388682,67854.0,67846.0,0.01209643]
[1772899268811,0.07388682,67854.0,67846.0,0.05956224]
[1772899269553,0.07388682,67854.0,67848.0,0.01061643]
[1772899269757,0.07388682,67854.0,67848.0,0.05808224]
[1772899271418,0.07388682,67854.0,67846.0,0.00148]
[1772899272436,0.07388682,67854.0,67846.0,0.00168]
[1772899272648,0.07410683,67854.0,67846.0,0.00168]
[1772899273344,0.07410683,67854.0,67846.0,0.0753761]
[1772899273539,0.02632912,67857.0,67848.0,0.01061643]
[1772899273740,0.07390072,67861.0,67846.0,0.0753761]
[1772899273741,0.07368218,67860.0,67851.0,0.04746581]
[1772899273942,0.07368218,67860.0,67852.0,0.01061643]
[1772899274225,0.07390111,67861.0,67852.0,0.01061643]
[1772899276738,0.07390111,67861.0,67853.0,0.0736887]
[1772899277497,0.07390111,67861.0,67852.0,0.08430572]
[1772899279595,0.07390111,67861.0,67853.0,0.04746581]
[1772899279933,0.07390111,67861.0,67855.0,0.01061643]
[1772899280999,0.07152039,67863.0,67857.0,0.01061643]
[1772899282222,0.07192091,67863.0,67857.0,0.01061643]
[1772899283011,0.00040052,67863.0,67847.0,0.01061643]
[1772899283215,0.00933732,67862.0,67848.0,0.00148]
[1772899283635,0.00933732,67862.0,67849.0,0.00148]
[1772899284959,0.00040052,67863.0,67850.0,0.01061643]
[1772899285158,0.07407882,67863.0,67852.0,0.04746581]
[1772899285454,0.07407882,67863.0,67855.0,0.01061643]
[1772899286452,0.07407882,67863.0,67855.0,0.01209643]
[1772899286767,0.0736783,67863.0,67855.0,0.01209643]
[1772899287351,0.01921861,67865.0,67855.0,0.08578226]
[1772899287535,0.00022001,67862.0,67855.0,0.08618278]
[1772899291457,0.07368002,67861.0,67855.0,0.07556635]
[1772899292635,0.07368002,67861.0,67855.0,0.00040052]
[1772899293795,0.07368002,67861.0,67855.0,0.00188052]
[1772899294111,0.07368002,67861.0,67855.0,0.00040052]
[1772899294301,0.07368002,67861.0,67855.0,0.00188052]
[1772899295107,0.07390003,67861.0,67852.0,0.00148]
[1772899295408,0.07430055,67861.0,67850.0,0.08430748]
[1772899295561,0.07430055,67861.0,67852.0,0.00148]
[1772899295758,0.07430055,67861.0,67849.0,0.07369196]
[1772899295996,0.08412091,67861.0,67848.0,0.07517391]
[1772899296310,0.07430055,67861.0,67848.0,0.07517391]
[1772899296507,0.07389905,67862.0,67851.0,0.03968353]
[1772899296686,0.03116131,67861.0,67852.0,0.03968353]
[1772899296889,0.03116131,67861.0,67853.0,0.01061643]
[1772899297367,0.03116131,67861.0,67855.0,0.01061643]
[1772899301334,0.03116131,67861.0,67855.0,0.08450258]
[1772899302722,0.07389905,67862.0,67855.0,0.01081643]
[1772899303116,0.00022001,67862.0,67855.0,0.08450296]
[1772899303328,0.07389896,67862.0,67855.0,0.08450296]
[1772899304195,0.07389896,67862.0,67855.0,0.01081643]
[1772899304395,0.07389896,67862.0,67855.0,0.08450257]
[1772899304828,0.07389896,67862.0,67855.0,0.07388614]
[1772899306628,0.07389896,67862.0,67855.0,0.0002]
[1772899309146,0.07389896,67862.0,67856.0,0.01136914]
[1772899313600,0.07389905,67862.0,67856.0,0.0850544]
[1772899313772,0.07389933,67862.0,67856.0,0.0850544]
[1772899317535,0.05020622,67861.0,67852.0,0.00148]
[1772899317882,0.03987942,67859.0,67848.0,0.07404405]
[1772899318087,0.04027969,67859.0,67849.0,0.00148]
[1772899319347,0.04027969,67859.0,67855.0,0.0002]
[1772899319561,0.07368327,67858.0,67855.0,0.0002]
[1772899322708,0.07368327,67858.0,67835.0,0.0059438]
[1772899322871,0.07368327,67858.0,67838.0,0.00148]
[1772899323068,0.07368327,67858.0,67835.0,0.07965205]
[1772899323264,0.07368327,67858.0,67836.0,0.00148]
[1772899323461,0.01055973,67856.0,67835.0,0.04444362]
[1772899323680,0.01055973,67848.0,67826.0,0.07371804]
[1772899323879,0.07369739,67845.0,67828.0,0.07371586]
[1772899324163,0.01057532,67842.0,67828.0,0.07371586]
[1772899324598,0.01057532,67842.0,67828.0,0.00148]
[1772899324799,0.01057532,67842.0,67825.0,0.01217397]
[1772899324800,0.07369739,67845.0,67825.0,0.00148]
[1772899324801,0.01162259,67837.0,67825.0,0.00148]
[1772899324997,0.01162259,67836.0,67825.0,0.00148]
[1772899325773,0.00148,67841.0,67826.0,0.07371804]
[1772899325774,0.07370283,67840.0,67826.0,0.07371804]
[1772899325978,0.07409305,67850.0,67830.0,0.03512628]
[1772899326175,0.07409305,67850.0,67841.0,0.0002]
[1772899326377,0.0004,67850.0,67841.0,0.01178017]
[1772899326617,0.07368885,67853.0,67842.0,0.03512628]
[1772899326793,0.03775405,67853.0,67844.0,0.03512628]
[1772899327106,0.07368885,67853.0,67845.0,0.01158017]
[1772899327309,0.07368885,67853.0,67846.0,0.00148]
[1772899327826,0.07368219,67859.0,67847.0,0.07369522]
[1772899328583,0.08465474,67859.0,67847.0,0.07369522]
[1772899329127,0.08505501,67859.0,67847.0,0.07369522]
[1772899330331,0.08505501,67859.0,67841.0,0.0002]
[1772899330332,0.03614322,67858.0,67841.0,0.0002]
[1772899330626,0.01097255,67857.0,67841.0,0.00168]
[1772899330826,0.01097255,67855.0,67841.0,0.07390168]
[1772899331030,0.01097255,67854.0,67841.0,0.07538168]
[1772899331436,0.01097255,67853.0,67841.0,0.07390168]
[1772899331619,0.04711577,67853.0,67841.0,0.07390168]
[1772899332004,0.01097255,67852.0,67841.0,0.07390168]
[1772899333638,0.07368762,67854.0,67841.0,0.07390168]
[1772899333834,0.07368762,67854.0,67842.0,0.01155614]
[1772899334223,0.07368762,67856.0,67843.0,0.03512628]
[1772899334426,0.07368762,67856.0,67844.0,0.01155614]
[1772899336225,0.07368505,67857.0,67845.0,0.07369739]
[1772899336420,0.07368505,67857.0,67846.0,0.00148]
[1772899336815,0.07430355,67859.0,67847.0,0.01155614]
[1772899338381,0.07430355,67859.0,67848.0,0.07369413]
[1772899342992,0.07430355,67859.0,67847.0,0.08525082]
[1772899344571,0.01097255,67854.0,67844.0,0.00148]
[1772899344792,0.07368545,67856.0,67844.0,0.00148]
[1772899344998,0.01097255,67853.0,67843.0,0.00148]
[1772899345197,0.01097255,67851.0,67841.0,0.07390074]
[1772899345399,0.01097255,67851.0,67841.0,0.07538074]
[1772899345824,0.01097255,67851.0,67842.0,0.00148]
[1772899346425,0.01097255,67851.0,67843.0,0.00148]
[1772899346826,0.07369196,67850.0,67841.0,0.0002]
[1772899347111,0.07369196,67850.0,67843.0,0.00148]
[1772899347835,0.07369196,67850.0,67841.0,0.0002]
[1772899348042,0.07369196,67850.0,67843.0,0.00148]
[1772899349470,0.01097255,67847.0,67841.0,0.00168]
[1772899349971,0.07369196,67850.0,67841.0,0.00168]
[1772899350136,0.07369196,67852.0,67842.0,0.01155614]
[1772899350959,0.07368327,67858.0,67843.0,0.07369957]
[1772899351177,0.00148,67855.0,67843.0,0.08525571]
[1772899351478,0.07368327,67858.0,67843.0,0.08525571]
[1772899351678,0.00148,67855.0,67843.0,0.08525571]
[1772899351972,0.07368327,67858.0,67844.0,0.01155614]
[1772899352174,0.00148,67855.0,67844.0,0.01155614]
[1772899352398,0.14705499,67854.0,67844.0,0.01155614]
[1772899352580,0.14705499,67853.0,67844.0,0.01155614]
[1772899352778,0.14705499,67855.0,67843.0,0.07051499]
[1772899352981,0.14705499,67855.0,67846.0,0.01155614]
[1772899353299,0.22074159,67855.0,67847.0,0.01303614]
[1772899353526,0.0736866,67855.0,67847.0,0.01303614]
[1772899354364,0.0736866,67855.0,67848.0,0.07369413]
[1772899354570,0.22074159,67855.0,67848.0,0.05895508]
[1772899354794,0.0736866,67855.0,67848.0,0.05895508]
[1772899354955,0.22074159,67855.0,67848.0,0.05895508]
[1772899355160,0.14705499,67854.0,67848.0,0.05895508]
[1772899355464,0.14705499,67853.0,67848.0,0.05895508]
[1772899355695,0.14705499,67854.0,67848.0,0.05895508]
[1772899356005,0.14705499,67853.0,67848.0,0.05895508]
[1772899356304,0.0736865,67857.0,67848.0,0.05895508]
[1772899356510,0.14719274,67856.0,67848.0,0.05895508]
[1772899356671,0.14719274,67855.0,67848.0,0.05895508]
[1772899356867,0.14719274,67854.0,67848.0,0.05895508]
[1772899357073,0.14719274,67853.0,67848.0,0.05895508]
[1772899357303,0.0736865,67857.0,67848.0,0.05895508]
[1772899357510,0.14720469,67856.0,67848.0,0.05895508]
[1772899357705,0.14720469,67855.0,67848.0,0.05895508]
[1772899358005,0.14720469,67854.0,67848.0,0.05895508]
[1772899358206,0.14720469,67853.0,67847.0,0.08693076]
[1772899358383,0.0736869,67855.0,67847.0,0.08693076]
[1772899358384,0.14720469,67852.0,67847.0,0.08693076]
[1772899358588,0.00062028,67859.0,67848.0,0.01174313]
[1772899358904,0.00062028,67859.0,67850.0,0.01174313]
[1772899359063,0.07430287,67859.0,67850.0,0.01174313]
[1772899360256,0.07430287,67859.0,67851.0,0.07369088]
[1772899363938,0.07430287,67859.0,67847.0,0.07389522]
[1772899364218,0.07430287,67859.0,67852.0,0.00148]
[1772899365539,0.00022001,67866.0,67852.0,0.01322313]
[1772899365731,0.07424306,67865.0,67854.0,0.01174313]
[1772899365932,0.07424306,67865.0,67855.0,0.07368653]
[1772899366155,0.07424306,67865.0,67854.0,0.07368653]
[1772899368342,0.00056728,67865.0,67855.0,0.01174313]
[1772899368529,0.07424305,67865.0,67855.0,0.01174313]
[1772899370727,0.07424305,67865.0,67856.0,0.07368545]
[1772899372713,0.07424305,67865.0,67854.0,0.07368545]
[1772899373413,0.07424305,67865.0,67854.0,0.07388545]
[1772899376483,0.07424305,67865.0,67855.0,0.01174313]
[1772899376484,0.00056728,67865.0,67855.0,0.01174313]
[1772899377158,0.00056728,67865.0,67856.0,0.07368545]
[1772899377159,0.07424318,67865.0,67856.0,0.07368545]
[1772899379342,0.07424318,67865.0,67855.0,0.07368545]
[1772899379343,0.01296727,67864.0,67854.0,0.0002]
[1772899381279,0.22124347,67865.0,67854.0,0.0002]
[1772899381591,0.22124347,67865.0,67855.0,0.01338343]
[1772899381893,0.00056728,67865.0,67855.0,0.01338343]
[1772899382257,0.07424308,67865.0,67855.0,0.01338343]
[1772899382903,0.07424308,67865.0,67854.0,0.0002]
[1772899383506,0.01319584,67862.0,67854.0,0.0002]
[1772899384090,0.22124284,67865.0,67854.0,0.0002]
[1772899386129,0.22166214,67865.0,67854.0,0.0002]
[1772899386336,0.14699976,67864.0,67854.0,0.0002]
[1772899386893,0.14755736,67864.0,67855.0,0.0002]
[1772899388210,0.14699976,67863.0,67855.0,0.0002]
[1772899388411,0.07423441,67864.0,67855.0,0.0002]
[1772899388647,0.14721718,67863.0,67855.0,0.0002]
[1772899388868,0.07423441,67864.0,67855.0,0.0002]
[1772899389039,0.14777478,67863.0,67855.0,0.0002]
[1772899389252,0.0005576,67863.0,67855.0,0.0002]
[1772899390491,0.14778978,67863.0,67855.0,0.0002]
[1772899393131,0.01319584,67867.0,67855.0,0.0002]
[1772899393132,0.07379704,67877.0,67856.0,0.0127484]
[1772899393347,0.07379704,67877.0,67856.0,0.01428737]
[1772899394229,0.00022001,67872.0,67856.0,0.01428737]
[1772899395230,0.00022001,67872.0,67858.0,0.0127484]
[1772899396472,0.00022001,67872.0,67858.0,0.0137484]
[1772899396668,0.00022001,67872.0,67858.0,0.0127484]
[1772899397191,0.07388822,67872.0,67858.0,0.001]
[1772899397398,0.07388822,67872.0,67857.0,0.00148]
[1772899397611,0.02684654,67869.0,67857.0,0.00148]
[1772899397806,0.01270045,67866.0,67852.0,0.07368979]
[1772899398000,0.02684654,67865.0,67857.0,0.00148]
[1772899398402,0.02684654,67865.0,67858.0,0.001]
[1772899398782,0.02684654,67865.0,67857.0,0.00148]
[1772899399375,0.02684654,67865.0,67858.0,0.07368327]
[1772899399609,0.00148,67868.0,67858.0,0.07368327]
[1772899399816,0.07515264,67868.0,67858.0,0.07368327]
[1772899399974,0.10199918,67868.0,67858.0,0.07368327]
[1772899400172,0.02684654,67867.0,67858.0,0.07368327]
[1772899401390,0.07367459,67866.0,67857.0,0.07516418]
[1772899401589,0.07367459,67866.0,67856.0,0.07368327]
[1772899401590,0.02684654,67865.0,67856.0,0.00148]
[1772899401795,0.01270045,67863.0,67856.0,0.05017173]
[1772899403649,0.01270045,67863.0,67856.0,0.00148]
[1772899403848,0.07367775,67864.0,67856.0,0.00148]
[1772899404031,0.0863782,67864.0,67856.0,0.00148]
[1772899404549,0.01270045,67864.0,67856.0,0.00148]
[1772899406043,0.01270045,67864.0,67857.0,0.07368436]
[1772899407327,0.086378,67864.0,67857.0,0.07368436]
[1772899407527,0.01270045,67864.0,67857.0,0.07368436]
[1772899408547,0.07367563,67866.0,67857.0,0.07368436]
[1772899408752,0.00022001,67865.0,67857.0,0.07368436]
[1772899415335,0.0738957,67865.0,67858.0,0.00148]
[1772899415643,0.0738957,67865.0,67852.0,0.0002]
[1772899415644,0.01270045,67862.0,67855.0,0.00148]
[1772899416223,0.01270045,67862.0,67854.0,0.00148]
[1772899417791,0.01270045,67862.0,67852.0,0.0002]
[1772899418010,0.01270045,67862.0,67854.0,0.00148]
[1772899419249,0.01270045,67862.0,67852.0,0.0002]
[1772899419582,0.01270045,67862.0,67853.0,0.00148]
[1772899419781,0.01270045,67862.0,67852.0,0.0002]
[1772899420033,0.01486309,67861.0,67852.0,0.00168]
[1772899425323,0.0885433,67861.0,67853.0,0.0736887]
[1772899425523,0.08854313,67861.0,67853.0,0.0736887]
[1772899429276,0.07367855,67863.0,67853.0,0.0736887]
[1772899429592,0.07367738,67864.0,67853.0,0.0736887]
[1772899430266,0.07367738,67864.0,67853.0,0.0738887]
[1772899430698,0.07389623,67865.0,67853.0,0.0738887]
[1772899430699,0.00022001,67865.0,67853.0,0.0738887]
[1772899431050,0.00022001,67865.0,67856.0,0.03918437]
[1772899432510,0.01486309,67864.0,67855.0,0.07368653]
[1772899433104,0.01486309,67864.0,67854.0,0.07368653]
[1772899438836,0.0150831,67864.0,67854.0,0.07368653]
[1772899445897,0.00022001,67864.0,67854.0,0.07368653]
[1772899446200,0.00022001,67864.0,67855.0,0.0220254]
[1772899446407,0.00022001,67864.0,67855.0,0.0226452]
[1772899447026,0.01577423,67870.0,67856.0,0.00148]
[1772899447245,0.01577423,67865.0,67857.0,0.07368436]
[1772899447444,0.01577423,67863.0,67858.0,0.00148]
[1772899447653,0.01577423,67863.0,67857.0,0.07418246]
[1772899448079,0.02270473,67862.0,67855.0,0.0752877]
[1772899448252,0.01603836,67861.0,67856.0,0.07468436]
[1772899449385,0.01603836,67861.0,67856.0,0.07368436]
[1772899449554,0.01607968,67861.0,67856.0,0.07368436]
[1772899452072,0.01607968,67861.0,67855.0,0.0738077]
[1772899455081,0.01607968,67861.0,67855.0,0.0001217]
[1772899457772,4.132e-05,67861.0,67855.0,0.0001217]
[1772899457997,0.00022001,67864.0,67855.0,0.0001217]
[1772899458217,0.00022001,67864.0,67855.0,0.03816921]
[1772899458419,0.00022001,67864.0,67855.0,0.0221471]
[1772899460476,0.00022001,67864.0,67856.0,0.07368545]
[1772899460698,0.01603836,67863.0,67853.0,0.07388862]
[1772899460918,0.01603836,67861.0,67852.0,0.07388959]
[1772899461117,0.01603836,67861.0,67852.0,0.07428986]
[1772899462562,0.01603836,67859.0,67852.0,0.07428986]
[1772899466100,0.00148,67860.0,67852.0,0.07428986]
[1772899468927,0.07516125,67860.0,67852.0,0.00060027]